Cogmind - Beta 14 @@@ ROGUE MODE // 2024.12.07 @ 18:29:08 Player: abnormality Result: Destroyed by G-34 Mercenary with Small Laser Performance ------------- Evolutions (0) 0 Regions Visited (1) 200 Robots Destroyed (5) 25 Value Destroyed (122) 122 Prototype IDs (1) 20 Alien Tech Used (0) 0 Bonus (0) 0 TOTAL SCORE: 367 Bonus ------- None Cogmind --------- Core Integrity 0/250 Matter 300/300 Energy 100/100 System Corruption 0% Temperature Cool (6) Movement Core (150) Ox2 Location -10/Materials Parts ------- > --- POWER (1) -------- (None) > --- PROPULSION (2) --- (None) > --- UTILITY (2) ------ Small Storage Unit Trap Extractor (0/4) > --- WEAPON (2) ------- Medium Laser > --- INVENTORY (8) ---- Ion Engine Light Ion Engine Light Ion Engine Aluminum Leg Aluminum Leg Heat Sink Visual Processing Unit Peak State ------------ > --- POWER ------------ Heavy Ion Engine > --- PROPULSION ------- Aluminum Leg Aluminum Leg > --- UTILITY ---------- Heat Sink Small Storage Unit > --- WEAPON ----------- Medium Laser Light Assault Rifle > --- INVENTORY -------- Ion Engine Light Ion Engine Light Ion Engine Aluminum Leg Aluminum Leg Visual Processing Unit Trap Extractor Medium Laser [Rating: 10] Favorites ----------- Power Light Ion Engine Engine Light Ion Engine Propulsion Aluminum Leg Leg Aluminum Leg Utility Small Storage Unit Device Trap Extractor Storage Small Storage Unit Weapon Medium Laser Energy Gun Medium Laser Ballistic Gun Light Assault Rifle Build | -11 -10 ------- Run | Yrd Mat Slots Evolved . | . . Power . | . . Propulsion . | . . Utility . | . . Weapon . | . . Parts Attached 11 | 6 5 Power 3 | 1 2 Engine 3 | 1 2 Core . | . . Reactor . | . . Propulsion 2 | 2 . Treads . | . . Leg 2 | 2 . Wheel . | . . Hover . | . . Flight . | . . Utility 3 | 1 2 Device 2 | . 2 Storage 1 | 1 . Processor . | . . Hackware . | . . Protection . | . . Artifact . | . . Weapon 3 | 2 1 Energy Gun 2 | 1 1 Energy Cannon . | . . Ballistic Gun 1 | 1 . Ballistic Cannon . | . . Launcher . | . . Special Weapon . | . . Impact Weapon . | . . Slashing Weapon . | . . Piercing Weapon . | . . Special Melee Weapon . | . . Unidentified Prototypes 1 | . 1 Parts Lost 5 | . 5 Power 1 | . 1 Propulsion 2 | . 2 Utility . | . . Weapon 2 | . 2 Highest Loss Streak 5 | . 5 To Critical Strikes . | . . Average Slot Usage (%) 86 | . 86 Engine 13 | . 13 Leg 24 | . 24 Device 7 | . 7 Storage 14 | . 14 Energy Gun 14 | . 14 Ballistic Gun 11 | . 11 Peak Build Rating 10 | 6 10 Average Rating 6 | 3 7 On Entrance 3 | . 6 Naked Turns . | . . Heaviest Build 18 | 11 18 Greatest Support 20 | 20 20 Greatest Overweight (x) 5 | . 5 Average Overweight (x) . | . . Largest Inventory Capacity 8 | 8 8 Average Capacity 7 | 7 8 Most Carried 8 | 5 8 Average Carried 4 | 2 5 Final Capacity 8 | 8 8 Final Carried 7 | 2 7 Class Distribution -------------------- 100% | Mutant Dominant Class ---------------- Mutant | -10/Materials Resources | -11 -10 ----------- Run | Yrd Mat Matter Collected 303 | 164 139 Remotely . | . . Salvage Created 134 | . 134 Parts 13 | . 13 Haulers Intercepted . | . . Recyclers Shooed . | . . Parts Field Recycled . | . . Retrieved Matter . | . . Parts Self-Destructed . | . . Prevented . | . . Kills | -11 -10 ------- Run | Yrd Mat Combat Hostiles Destroyed 5 | . 5 Guns 5 | . 5 Classes Destroyed 2 | . 2 Swarmer 2 | . 2 Grunt 3 | . 3 Best Kill Streak 2 | . 2 Combat Bots Only 2 | . 2 Max Kills in Single Turn 1 | . 1 Gunslinging . | . . Exploded . | . . Melee . | . . Uniques/NPCs Destroyed . | . . Combat | -11 -10 -------- Run | Yrd Mat Hostile Shots Fired 116 | . 116 Missed 30 | . 30 Damage Taken 883 | . 883 Core 259 | . 259 Absorbed by Shields . | . . Core Remaining (%) 100 | 100 . Volleys Fired 36 | . 36 Largest 2 | . 2 Hottest 70 | . 70 Shots Fired 65 | . 65 Gun 65 | . 65 Cannon . | . . Launcher . | . . Special . | . . Kinetic 29 | . 29 Thermal 36 | . 36 Explosive . | . . Electromagnetic . | . . Robot Hit Streak 7 | . 7 Robot Miss Streak 4 | . 4 Penetration Max . | . . Secondary Targets . | . . Shots Hit Robots 35 | . 35 Core Hits 11 | . 11 Critical Kills . | . . Critical Parts Destroyed . | . . Critical Strikes 2 | . 2 Burn 2 | . 2 Melee Attacks . | . . Impact . | . . Slashing . | . . Piercing . | . . Sneak Attacks . | . . Combat Hostiles . | . . Follow-up Attacks . | . . Damage Inflicted 399 | . 399 Guns 396 | . 396 Cannons . | . . Explosions . | . . Melee . | . . Ramming 3 | . 3 Kinetic 156 | . 156 Thermal 240 | . 240 Explosive . | . . Electromagnetic . | . . Impact . | . . Slashing . | . . Piercing . | . . Highest Corruption . | . . Average Corruption . | . . Corruption Purged . | . . Corruption Blocked . | . . Overload Shots . | . . Overflow Damage . | . . Projectiles . | . . Explosions . | . . Melee . | . . Knockbacks . | . . Impact . | . . Kinetic . | . . Secondary . | . . Self-Inflicted Damage . | . . Shots . | . . Rammed 4 | . 4 Targets Rammed 4 | . 4 Kicked . | . . Crushed . | . . Highest Temperature 300 | . 300 Average Temperature 98 | . 98 Received Heat Transfer 390 | . 390 Effects 1 | . 1 Short Circuit 1 | . 1 Siege Activations . | . . Robots Corrupted . | . . Combat Hostiles . | . . Parts Fried . | . . Impact Corruptions . | . . Robots Melted . | . . Combat Hostiles . | . . Parts Melted 2 | . 2 Heat Transferred 851 | . 851 Parts Sabotaged . | . . Parts Stolen . | . . Parts Stripped . | . . Power Chain Reactions . | . . Alert | -11 -10 ------- Run | Yrd Mat Peak Influence 130 | . 130 Initial . | . . Average 35 | . 41 Maximum Alert Level . | . . Low Security (%) 100 | 100 100 Level 1 . | . . Level 2 . | . . Level 3 . | . . Level 4 . | . . Level 5 . | . . High Security . | . . Max Security . | . . Squads Dispatched 2 | . 2 Investigation 1 | . 1 Extermination . | . . Reinforcement 1 | . 1 Assault . | . . Garrison . | . . Intercept . | . . Searches Triggered . | . . Construction Impeded . | . . Haulers Reinforced . | . . Active Scanning Responses . | . . Cargo Convoy Interrupts . | . . Stealth | -11 -10 --------- Run | Yrd Mat Distress Signals . | . . Communications Jammed . | . . Distress Signals . | . . Times Spotted 13 | . 13 Peak Tracking Total 6 | . 6 Tactical Retreats 3 | . 3 Traps | -11 -10 ------- Run | Yrd Mat Traps Triggered . | . . Indirectly . | . . Trap Hack Attempts . | . . Triggered . | . . Disarmed . | . . Reprogrammed . | . . Reused . | . . Traps Extracted . | . . Installed . | . . Triggered . | . . Machines | -11 -10 ---------- Run | Yrd Mat Machines Disabled . | . . Max in Single Turn . | . . Machines Repaired . | . . Machines Dismantled . | . . Machines Sabotaged . | . . Overloaded Fab Kills . | . . Hacking | -11 -10 --------- Run | Yrd Mat Machines Accessed 1 | . 1 Terminals 1 | . 1 Fabricators . | . . Repair Stations . | . . Recycling Units . | . . Scanalyzers . | . . Garrison Access . | . . Total Hacks 4 | . 4 Successful 1 | . 1 Failed 3 | . 3 Catastrophic 1 | . 1 Database Lockouts . | . . Manual . | . . Terminals 4 | . 4 Fabricators . | . . Repair Stations . | . . Recycling Units . | . . Scanalyzers . | . . Garrison Access . | . . Terminal Hacks 1 | . 1 Unreport Threat 1 | . 1 Fabricator Hacks . | . . Repair Station Hacks . | . . Recycling Unit Hacks . | . . Scanalyzer . | . . Garrison Access Hacks . | . . Unauthorized Hacks . | . . Terminals . | . . Fabricators . | . . Repair Stations . | . . Recycling Units . | . . Scanalyzers . | . . Garrison Access . | . . Data Cores Recovered . | . . Used . | . . Hacking Detections 1 | . 1 Full Trace Events 1 | . 1 Feedback Events . | . . Feedback Blocked . | . . Robot Schematics Acquired . | . . Robots Built . | . . Authchips . | . . Time . | . . Total Robot Build Rating . | . . Part Schematics Acquired . | . . Parts Built . | . . Authchips . | . . Time . | . . Total Part Build Rating . | . . Parts Repaired . | . . Time . | . . Parts Recycled . | . . Recycled Matter . | . . Retrieved Matter . | . . Retrieved Components . | . . Parts Scanalyzed . | . . Part Schematics Acquired . | . . Parts Damaged . | . . Bothacking | -11 -10 ------------ Run | Yrd Mat Used RIF Installer . | . . Robots Hacked . | . . Non-combat . | . . Combat . | . . Robot Hacks Applied . | . . Relay Couplers Released . | . . Fabnet Peak Effective % . | . . Robots Rewired . | . . Allies Hacked . | . . Hacks Repelled . | . . Allies | -11 -10 -------- Run | Yrd Mat Total Allies . | . . Largest Group . | . . Highest-Rated Group . | . . Highest-Rated Ally . | . . Total Orders . | . . Ally Attacks . | . . Total Damage . | . . Kills . | . . Allies Corrupted . | . . Allies Melted . | . . Intel | -11 -10 ------- Run | Yrd Mat Robot Analysis Total . | . . Derelict Logs Recovered . | . . Drone Launches . | . . Drone Recoveries . | . . Exploration | -11 -10 ------------- Run | Yrd Mat Turns Passed 326 | 50 276 Spaces Moved 160 | 35 125 Core 13 | 8 5 Treads . | . . Legs 147 | 27 120 Wheels . | . . Hover . | . . Flight . | . . Fastest Speed 50 | 50 120 Average Speed 118 | 104 122 Slowest Speed 300 | 120 300 Overloaded Moves . | . . Propulsion Burnouts . | . . Robots Hopped . | . . Cave-ins Triggered . | . . Exploration Rate (%) 14 | 3 25 Regions Visited 1 Branch Regions . Pre-discovered Areas . | . . Known Exits Taken . | . . Unknown Exits Taken 1 | 1 . Scrap Searched . | . . Spaces Dug . | . . Terrain Destroyed . | . . Melee . | . . Projectile . | . . AOE . | . . Terrain Rammed . | . . Walls Destroyed . | . . Machines Disabled . | . . Actions | -11 -10 --------- Run | Yrd Mat Total 226 | 48 178 Wait 1 | . 1 Move 159 | 34 125 Hop . | . . Pick Up 15 | 8 7 Fast Attach . | . . Attach 8 | 6 2 Detach . | . . Swap 3 | . 3 Drop . | . . Fire 36 | . 36 Melee . | . . Ram 4 | . 4 Kick . | . . Crush . | . . Escape Stasis . | . . Rewire . | . . Trap . | . . Miscellaneous . | . . Route ------- -11/Scrapyard -10/Materials History --------- Turn | Location | Event 19 | -11/Scrapyard | Discovered new exit (range 16) 51 | -11/Scrapyard | Entered Materials 301 | -10/Materials | Core integrity fell below 50% 316 | -10/Materials | Core integrity fell below 20% 322 | -10/Materials | Build established: Mutant 327 | -10/Materials | Destroyed by G-34 Mercenary with Small Laser Last Messages --------------- 00306_ Slammed into G-34 Mercenary. 00306_ Destabilizing: System interference. 00306_ Trap Extractor temporarily disabled. 00306_ K-01 Serf collects debris. 00307_ G-34 Mercenary heat spikes uncontrollably. 00307_ G-34 Mercenary overheating. 00309_ Slammed into G-34 Mercenary. 00309_ G-34 Mercenary overheating. 00310_ K-01 Serf collects debris. 00310_ G-34 Mercenary overheating. 00312_ Slammed into G-34 Mercenary. 00313_ K-01 Serf collects debris. 00313_ S-10 Pest destroyed. 00315_ Slammed into G-34 Mercenary. 00315_ K-01 Serf collects debris. 00317_ G-34 Mercenary destroyed. 00318_ Acquired 27 matter. 00318_ Hvy. Ion Engine destroyed. 00320_ R-06 Scavenger collects Lgt. Ion Engine. 00324_ R-06 Scavenger collects Lgt. Assault Rifle. Map ----- +----------------------------------------------------+ | ????????# ???# #??????????# | | ????????+ #### #??????????# | | ????????# #??????????? | | ????????# #??????????? | | ????????# " #??????????? | | ???????# """ #??????????? | | ???????# "" ##########?? | | ???????# """ # #??? | | ???????+ "" # #??? | | ???????# """ # ! #??? | | ???????# """ ==# """ #??? | | ???????# """ ==# """""#??? | | ????????# " # """""#??? | | ????????# =# """""#??? | | ????????# +* """ #??? | | ????????# #= #??? | | ????##### ##########??? | | ????#!! #??????????? | | ????# ! #??????????? | | ????#!! #??????????? | | ????# ! =% #??????????? | | ????# * [% #??????????? | | ????#** = ###" "# ###??????????? | | ????#####%g T#"Y"# #????????????? | | ????????# gr""#"""# #????????????? | | ????????#@ ####### #????????????? | | ????????# #?????# #????????????? | | ????????# #?????# #????????????? | | ????????# #?????# #????????????? | | ????????# #?????# #????????????? | | ????????# #?????# #????????????? | | ????????# #?????# ????????????? | | ????????# #?????? ????????????? | | ????????# #?????? ????????????? | | ????????# #?????? ????????????? | | ????????# #?????? ????????????? | | ???????? ?????? ????????????? | | ???????? ?????? ????????????? | | ????????? ??????##????????????? | | ????????? ????????????????????? | | ????????? ?????????????????????? | | ?????????????????????????????????? | | ?????????????????????????????????? | | ?????????????????????????????????? | | ?????????????????????????????????? | | ?????????????????????????????????? | | ?????????????????????????????????? | | ?????????????????????????????????? | | ?????????????????????????????????? | | ?????????????????????????????????? | +----------------------------------------------------+ Best States ------------- Heat Dissipation 35 Energy Generation 14 Energy Capacity 280 Matter Stores 300 Matter Capacity 300 Sight Range 16 Terrain Scan Density 10 Evasion (%) 55 Trap Extractor Capacity 4 Item Schematics ----------------- None Robot Schematics ------------------ None Fabricated ------------ Nothing Alien Tech Used ----------------- None Achievements -------------- None Challenges ------------ None Game ------ Seed GuidedAntimissileOptics Manual? 0 Play Time 00:06:50 Cumulative 7.7 hours Start 2024.12.07 @ 18:22:31 End 2024.12.07 @ 18:29:08 Sessions 1 Manual Loads 0 Difficulty Rogue Special Mode None Game No. 46 Rogue 46 Adventurer 0 Explorer 0 Win Type - Total 0 Types 0/0/0/0/0/0/0/0/0 Lore% 8 Gallery% 14 Achievement% 16 Wizard Run 0 Options --------- Layout 0 ASCII 0 Keyboard 0 Movement Mouse Keybinds 0 Fullscreen 1 Font 18/SmallcapsGlow Map View 38x25 Zoom Use 100% Tactical HUD 1 Map Filters NONE Filters NONE Steam 1 RUN: cca2e8af-2917-48b0-9fa6-8239d086bbe1